Workbook

Sheet 目录
A1: 目 录
B3: 一、结算汇总表
B4: 二、交通设施巡检费用
B5: 三、交通设施维修费用
B6: 四、应急保障与勤务费用
B7: 五、信号灯优化配时费用
B8: 六、供电费用

Sheet 结算汇总表
A1: 结算资金汇总表
A2: 2022-01-10
A3: 序号 | B3: 名称 | C3: 金额（元） | D3: 备注
A4: 一 | B4: 交通设施巡检费用 | C4: =SUM(C5:C7) -> 2405740.558
A5: 1.1 | B5: 巡检人员费用 | C5: =巡检人员费用!Q25 -> 1607466.667
A6: 1.2 | B6: 巡检车辆燃油费用 | C6: =巡检车辆燃油费用!P14 -> 474541.6
A7: 1.3 | B7: 巡检车辆折旧费用 | C7: =巡检车辆折旧费用!F13 -> 323732.2917
A8: 二 | B8: 交通设施维修费用 | C8: =SUM(C9:C12) -> 5249978.681
A9: 2.1 | B9: 消耗备件费用 | C9: =消耗备件费用!H38 -> 3644844.427
A10: 2.2 | B10: 维修人员费用 | C10: =维修人员费用表!Q23 -> 1266758.621
A11: 2.3 | B11: 维修车辆燃油费用 | C11: =维修车辆燃油费用!P8 -> 149404.8
A12: 2.4 | B12: 维修车辆折旧费用 | C12: =维修车辆折旧费用!F7 -> 188970.8333
A13: 三 | B13: 应急保障与勤务费用 | C13: =SUM(C14:C15) -> 182880
A14: 3.1 | B14: 应急保障费用 | C14: =应急保障费用!P6 -> 51840
A15: 3.2 | B15: 勤务费用 | C15: =勤务费用!B16 -> 131040
A16: 四 | B16: 信号灯优化配时费用 | C16: =SUM(C17:C18) -> 440000
A17: 4.1 | B17: 优化配时费用 | C17: =优化配时费用!C3 -> 350000
A18: 4.2 | B18: 主干道绿波方案设计费用 | C18: 90000 | D18: 两本绿波方案，每个方案45000元
A19: 五 | B19: 供电费用 | C19: =C20 -> 680004.2
A20: 5.1 | B20: 供电费用 | C20: =供电费用!F7 -> 680004.2
A21: 共计 | C21: =C4+C8+C13+C16+C19 -> 8958603.44

Sheet 巡检人员费用
A1: 交通设施巡检人员出勤统计明细表
A2: 序号 | B2: 人员名单 | C2: 2月 | D2: 3月 | E2: 4月 | F2: 5月 | G2: 6月 | H2: 7月 | I2: 8月 | J2: 9月 | K2: 10月 | L2: 11月 | M2: 12月 | N2: 合计 | O2: 人月 | P2: 月费用 | Q2: 金额
A3: 1 | B3: 王洪涛（组长） | C3: 21 | D3: 27 | E3: 26 | F3: 23 | G3: 26 | H3: 26 | I3: 27 | J3: 24 | K3: 21 | L3: 26 | M3: 27 | N3: =SUM(C3:M3) -> 274 | O3: =N3/21.75 -> 12.59770115 | P3: 7000 | Q3: =O3*P3 -> 88183.90805
A4: 2 | B4: 苏鹏 | C4: 21 | D4: 27 | E4: 26 | F4: 23 | G4: 26 | H4: 26 | I4: 27 | J4: 24 | K4: 21 | N4: =SUM(C4:M4) -> 221 | O4: =N4/21.75 -> 10.16091954 | P4: 6700 | Q4: =O4*P4 -> 68078.16092
A5: 3 | B5: 刘文博 | C5: 21 | D5: 27 | E5: 26 | F5: 23 | G5: 26 | H5: 26 | I5: 27 | J5: 24 | K5: 21 | L5: 26 | M5: 27 | N5: 274 | O5: 12.59770115 | P5: 6700 | Q5: 84404.5977
A6: 4 | B6: 王文静 | C6: 21 | D6: 27 | E6: 26 | F6: 23 | G6: 26 | H6: 26 | I6: 27 | J6: 24 | K6: 21 | L6: 26 | M6: 27 | N6: 274 | O6: 12.59770115 | P6: 6700 | Q6: 84404.5977
A7: 5 | B7: 李乔伟 | C7: 21 | D7: 27 | E7: 26 | F7: 23 | G7: 26 | H7: 26 | I7: 27 | J7: 24 | K7: 21 | L7: 26 | M7: 27 | N7: 274 | O7: 12.59770115 | P7: 6700 | Q7: 84404.5977
A8: 6 | B8: 柳宇峰 | C8: 21 | D8: 27 | E8: 26 | F8: 23 | G8: 26 | H8: 26 | I8: 27 | J8: 24 | K8: 21 | L8: 26 | M8: 27 | N8: 274 | O8: 12.59770115 | P8: 6700 | Q8: 84404.5977
A9: 7 | B9: 申建 | C9: 21 | D9: 27 | E9: 26 | F9: 23 | G9: 26 | H9: 26 | I9: 27 | J9: 24 | K9: 21 | N9: 221 | O9: 10.16091954 | P9: 6700 | Q9: 68078.16092
A10: 8 | B10: 晁月腾 | C10: 21 | D10: 27 | E10: 26 | F10: 23 | G10: 26 | H10: 26 | I10: 27 | J10: 24 | K10: 21 | N10: 221 | O10: 10.16091954 | P10: 6700 | Q10: 68078.16092
A11: 9 | B11: 陈雷 | C11: 21 | D11: 27 | E11: 26 | F11: 23 | G11: 26 | H11: 26 | I11: 27 | J11: 24 | K11: 21 | L11: 26 | M11: 27 | N11: 274 | O11: 12.59770115 | P11: 6700 | Q11: 84404.5977
A12: 10 | B12: 段用兵 | C12: 21 | D12: 27 | E12: 26 | F12: 23 | G12: 26 | H12: 26 | I12: 27 | J12: 24 | K12: 21 | L12: 26 | M12: 27 | N12: 274 | O12: 12.59770115 | P12: 6700 | Q12: 84404.5977
A13: 11 | B13: 高跃 | C13: 21 | D13: 27 | E13: 26 | F13: 23 | G13: 26 | H13: 26 | I13: 27 | J13: 24 | K13: 21 | L13: 26 | M13: 27 | N13: 274 | O13: 12.59770115 | P13: 6700 | Q13: 84404.5977
A14: 12 | B14: 刘达 | C14: 21 | D14: 27 | E14: 26 | F14: 23 | G14: 26 | H14: 26 | I14: 27 | J14: 24 | K14: 21 | L14: 26 | M14: 27 | N14: 274 | O14: 12.59770115 | P14: 6700 | Q14: 84404.5977
A15: 13 | B15: 王宝成 | C15: 21 | D15: 27 | E15: 26 | F15: 23 | G15: 26 | H15: 26 | I15: 27 | J15: 24 | K15: 21 | L15: 26 | M15: 27 | N15: 274 | O15: 12.59770115 | P15: 6700 | Q15: 84404.5977
A16: 14 | B16: 周立杰 | C16: 21 | D16: 27 | E16: 26 | F16: 23 | G16: 26 | H16: 26 | I16: 27 | J16: 24 | K16: 21 | L16: 26 | M16: 27 | N16: 274 | O16: 12.59770115 | P16: 6700 | Q16: 84404.5977
A17: 15 | B17: 孔详超 | C17: 21 | D17: 27 | E17: 26 | F17: 23 | G17: 26 | H17: 26 | I17: 27 | J17: 24 | K17: 21 | L17: 26 | M17: 27 | N17: 274 | O17: 12.59770115 | P17: 6700 | Q17: 84404.5977
A18: 16 | B18: 葛建军 | C18: 21 | D18: 27 | E18: 26 | F18: 23 | G18: 26 | H18: 26 | I18: 27 | J18: 24 | K18: 21 | L18: 26 | M18: 27 | N18: 274 | O18: 12.59770115 | P18: 6700 | Q18: 84404.5977
A19: 17 | B19: 周凤杰 | C19: 21 | D19: 27 | E19: 26 | F19: 23 | G19: 26 | H19: 26 | I19: 27 | J19: 24 | K19: 21 | L19: 26 | M19: 27 | N19: 274 | O19: 12.59770115 | P19: 6700 | Q19: 84404.5977
A20: 18 | B20: 崔海峰 | C20: 21 | D20: 27 | E20: 26 | F20: 23 | G20: 26 | H20: 26 | I20: 27 | J20: 24 | K20: 21 | L20: 26 | M20: 27 | N20: 274 | O20: 12.59770115 | P20: 6700 | Q20: 84404.5977
A21: 19 | B21: 邹楠楠 | C21: 21 | D21: 27 | E21: 26 | F21: 23 | G21: 26 | H21: 26 | I21: 27 | J21: 24 | K21: 21 | L21: 26 | M21: 27 | N21: 274 | O21: 12.59770115 | P21: 6700 | Q21: 84404.5977
A22: 20 | B22: 刘洋 | L22: 26 | M22: 27 | N22: 53 | O22: 2.436781609 | P22: 6700 | Q22: 16326.43678
A23: 21 | B23: 贾金豹 | L23: 26 | M23: 27 | N23: 53 | O23: 2.436781609 | P23: 6700 | Q23: 16326.43678
A24: 22 | B24: 杨岩 | L24: 26 | M24: 27 | N24: 53 | O24: 2.436781609 | P24: 6700 | Q24: 16326.43678
A25: 合计 | N25: =SUM(N3:N24) -> 5206 | O25: =SUM(O3:O24) -> 239.3563218 | Q25: 1607466.667

Sheet 巡检车辆燃油费用
A1: 交通设施巡检车辆燃油费用结算明细表
A2: 序号 | B2: 车辆信息 | C2: 燃油使用量（升） | N2: 合计 (升) | O2: 平均油价 （元/升） | P2: 燃油费（元）
C3: 2月 | D3: 3月 | E3: 4月 | F3: 5月 | G3: 6月 | H3: 7月 | I3: 8月 | J3: 9月 | K3: 10月 | L3: 11月 | M3: 12月
A4: 1 | B4: 京A0JF88 | C4: 584 | D4: 645 | E4: 626 | F4: 621 | G4: 624 | H4: 672 | I4: 664 | J4: 642 | K4: 684 | L4: 662 | M4: 684 | N4: =SUM(C4:M4) -> 7108 | O4: 6.6 | P4: =N4*O4 -> 46912.8
A5: 2 | B5: 京HHL105 | C5: 564 | D5: 647 | E5: 611 | F5: 634 | G5: 608 | H5: 648 | I5: 640 | J5: 608 | K5: 660 | L5: 639 | M5: 661 | N5: =SUM(C5:M5) -> 6920 | O5: 6.6 | P5: =N5*O5 -> 45672
A6: 3 | B6: 京MED179 | C6: 585 | D6: 664 | E6: 664 | F6: 668 | G6: 661 | H6: 680 | I6: 678 | J6: 653 | K6: 704 | L6: 682 | M6: 705 | N6: 7344 | O6: 6.6 | P6: 48470.4
A7: 4 | B7: 京KLX018 | C7: 600 | D7: 682 | E7: 662 | F7: 680 | G7: 663 | H7: 692 | I7: 683 | J7: 660 | K7: 703 | L7: 680 | M7: 704 | N7: 7409 | O7: 6.6 | P7: 48899.4
A8: 5 | B8: 京FGM022 | C8: 612 | D8: 622 | E8: 608 | F8: 630 | G8: 628 | H8: 664 | I8: 652 | J8: 637 | K8: 695 | L8: 672 | M8: 684 | N8: 7104 | O8: 6.6 | P8: 46886.4
A9: 6 | B9: 京EGP583 | C9: 622 | D9: 712 | E9: 688 | F9: 703 | G9: 692 | H9: 714 | I9: 710 | J9: 700 | K9: 702 | L9: 680 | M9: 688 | N9: 7611 | O9: 6.6 | P9: 50232.6
A10: 7 | B10: 京KMP870 | C10: 602 | D10: 614 | E10: 608 | F10: 611 | G10: 629 | H10: 659 | I10: 648 | J10: 641 | K10: 672 | L10: 650 | M10: 686 | N10: 7020 | O10: 6.6 | P10: 46332
A11: 8 | B11: 京JLZ337 | C11: 611 | D11: 676 | E11: 672 | F11: 669 | G11: 679 | H11: 695 | I11: 690 | J11: 680 | K11: 676 | L11: 654 | M11: 685 | N11: 7387 | O11: 6.6 | P11: 48754.2
A12: 9 | B12: 京N5N911 | C12: 616 | D12: 682 | E12: 660 | F12: 680 | G12: 664 | H12: 693 | I12: 681 | J12: 676 | K12: 679 | L12: 661 | M12: 695 | N12: 7387 | O12: 6.6 | P12: 48754.2
A13: 10 | B13: 京EGA773（柴油） | C13: 616 | D13: 704 | E13: 683 | F13: 700 | G13: 677 | H13: 705 | I13: 696 | J13: 685 | K13: 693 | L13: 671 | M13: 692 | N13: 7522 | O13: 5.8 | P13: 43627.6
A14: 合计 | C14: =SUM(C4:C13) -> 6012 | D14: =SUM(D4:D13) -> 6648 | E14: 6482 | F14: 6596 | G14: 6525 | H14: 6822 | I14: 6742 | J14: 6582 | K14: 6868 | L14: 6651 | M14: 6884 | N14: 72812 | P14: =SUM(P4:P13) -> 474541.6

Sheet 巡检车辆折旧费用
A1: 交通设施巡检车辆折旧费用结算明细表
A2: 序号 | B2: 车辆 | C2: 型号规格 | D2: 购置价（元） | E2: 残值(5%) | F2: 折旧额 （2021年02-12月共计11个月）
A3: 1 | B3: 京A0JF88 | C3: 五菱 | D3: 110000 | E3: =D3*0.05 -> 5500 | F3: =(D3-E3)/48*11 -> 23947.91667
A4: 2 | B4: 京HHL105 | C4: 长安 | D4: 125000 | E4: =D4*0.05 -> 6250 | F4: =(D4-E4)/48*11 -> 27213.54167
A5: 3 | B5: 京MED179 | C5: 长安 | D5: 125000 | E5: 6250 | F5: 27213.54167
A6: 4 | B6: 京KLX018 | C6: 福田牌 | D6: 120000 | E6: 6000 | F6: 26125
A7: 5 | B7: 京FGM022 | C7: 福田牌 | D7: 120000 | E7: 6000 | F7: 26125
A8: 6 | B8: 京EGP583 | C8: 福田牌 | D8: 120000 | E8: 6000 | F8: 26125
A9: 7 | B9: 京KMP870 | C9: 福田牌 | D9: 146000 | E9: 7300 | F9: 31785.41667
A10: 8 | B10: 京JLZ337 | C10: 福田牌 | D10: 146000 | E10: 7300 | F10: 31785.41667
A11: 9 | B11: 京N5N911 | C11: 大众 | D11: 158000 | E11: 7900 | F11: 34397.91667
A12: 10 | B12: 京EGA773（柴油） | C12: 福田牌 | D12: 317000 | E12: 15850 | F12: 69013.54167
A13: 折旧合计（元） | F13: =SUM(F3:F12) -> 323732.2917
A14: 注：根据国家最新企业所得税法实施条例，飞机、火车、轮船以外的运输工具最低折旧年限4年。

Sheet 消耗备件费用
A1: 交通信号灯设备维修结算资金明细表
A2: 序号 | B2: 名称 | C2: 单位 | D2: 品牌 | E2: 规格/参数 | F2: 单价（元） | G2: 数量 | H2: 总价（元）
A3: 1 | B3: 一般路灯 | C3: 套 | E3: 1.名称:信号灯 2.规格:φ400 | F3: 2353.05 | G3: 161 | H3: =F3*G3 -> 378841.05
A4: 2 | B4: 一般路灯 | C4: 套 | E4: 1.名称:步道灯 2.规格:φ300 | F4: 1550.05 | G4: 61 | H4: =F4*G4 -> 94553.05
A5: 3 | B5: 伸臂杆 | C5: 根 | E5: 1.名称:八棱镀锌钢制伸臂杆 2.规格:10m | F5: 5332.57 | G5: 16 | H5: 85321.12
A6: 4 | B6: 单柱型灯杆 | C6: 根 | E6: 1.名称:钢制镀锌步道单柱杆 2.规格:Ø133/4.5m | F6: 1226.64 | G6: 21 | H6: 25759.44
A7: 5 | B7: 信号灯板 | C7: 块 | E7: 1.名称:信号灯板 2.规格:Ø400mm | F7: 360.57 | G7: 487 | H7: 175597.59
A8: 6 | B8: 蓄电池 | C8: 个 | E8: 1.名称:蓄电池（太阳能信号灯） 2.容量（A·h):12V200AH | F8: 1042.18 | G8: 185 | H8: 192803.3
A9: 7 | B9: 电力电缆 | C9: 米 | E9: 1.名称:电力电缆 2.规格:YJV-3*4 3.敷设方式、部位:管内敷设 4.电压等级(kV):1kV | F9: 9.14 | G9: 11986 | H9: 109552.04
A10: 8 | B10: 电力电缆 | C10: 米 | E10: 1.名称:电力控制电缆 2.规格:YJV-5*1.5 3.敷设方式、部位:管内敷设 4.电压等级(kV):1kV | F10: 8.86 | G10: 30406 | H10: 269397.16
A11: 9 | B11: 信号机 | C11: 架 | E11: 1.名称:老式单点信号机 2.规格:提供8相位×4块/板=32（96路输出）相位数，用户可根据实际需要选择所需的信号控制相位，可以实现“一带二”、“一带三”或更多的控制模式) | F11: 6009.62 | G11: 65 | H11: 390625.3
A12: 10 | B12: 控制箱 | C12: 台 | E12: 1.名称:高端联网智能交通信号机箱 2.规格:16相位以上 3.类型:联网 ⑴.铝制前后双开门； ⑵.壁厚：3.0mm； ⑶.高度：1600mm；宽度：1200mm 深度：550mm ； ⑷.风扇2个，灯管1个，手控小门1个，应急电源小门及插座1套。 ⑸.信号机支架。 ⑹.信号机基础保护罩(香槟金)，不锈钢包边,表面氟碳喷涂。含信号机控制箱7.(室外机箱符合IP55，具有通风、隔热、防水、防火、耐盐雾、防尘等性能。适应室外恶劣条件下不间断工作，箱体中使用的端子、避雷装置、熔断装置、保护装置等均符合国家有关电气安全标准要求。箱体内具有自动温度调节控制模块和排风模块，可自动调节机柜内部温度，可自动排风或加热，使机柜内温度恒定在一定温度范围内，保证系统稳定的工作,底部配备了220V接线端子、红灯输入接线端子、I/O输出接线端子、接地端子及调试专用插座（2个两相插座、2个三相插座） | F12: 3821.43 | G12: 3 | H12: 11464.29
A13: 11 | B13: 路灯及庭院灯拆除 | C13: 套 | E13: 1.名称:信号灯拆除 2.规格:φ400 | F13: 44.85 | G13: 161 | H13: 7220.85
A14: 12 | B14: 路灯及庭院灯拆除 | C14: 套 | E14: 1.名称:步道灯拆除 2.规格:φ300 | F14: 44.85 | G14: 61 | H14: 2735.85
A15: 13 | B15: 路灯及庭院灯拆除 | C15: 套 | E15: 1.名称:伸臂杆拆除 2.规格:10m | F15: 395.82 | G15: 16 | H15: 6333.12
A16: 14 | B16: 路灯及庭院灯拆除 | C16: 套 | E16: 1.名称:单柱型灯杆拆除 2.规格:Ø133/4.5m | F16: 226.16 | G16: 21 | H16: 4749.36
A17: 15 | B17: 路灯及庭院灯拆除 | C17: 套 | E17: 1.名称:信号灯板拆除 2.规格:Ø400mm | F17: 131.05 | G17: 487 | H17: 63821.35
A18: 16 | B18: 蓄电池拆除 | C18: 个 | E18: 1.名称:蓄电池（太阳能信号灯）拆除 2.容量（A·h):12V200AH | F18: 259.33 | G18: 185 | H18: 47976.05
A19: 17 | B19: 电力电缆拆除 | C19: 米 | E19: 1.名称:电力电缆拆除 2.规格:YJV-3*4 3.敷设方式、部位:管内敷设 4.电压等级(kV):1kV | F19: 2.53 | G19: 11986 | H19: 30324.58
A20: 18 | B20: 电力电缆拆除 | C20: 米 | E20: 1.名称:电力控制电缆拆除 2.规格:YJV-5*1.5 3.敷设方式、部位:管内敷设 4.电压等级(kV):1kV | F20: 2.19 | G20: 30406 | H20: 66589.14
A21: 19 | B21: 信号机拆除 | C21: 架 | E21: 1.名称:老式单点信号机拆除 2.规格:提供8相位×4块/板=32（96路输出）相位数，用户可根据实际需要选择所需的信号控制相位，可以实现“一带二”、“一带三”或更多的控制模式) | F21: 120.93 | G21: 65 | H21: 7860.45
A22: 20 | B22: 控制箱拆除 | C22: 台 | E22: 1.名称:信号箱拆除 ⑴.铝制前后双开门； ⑵.壁厚：3.0mm； ⑶.高度：1600mm；宽度：1200mm 深度：550mm ； ⑷.风扇2个，灯管1个，手控小门1个，应急电源小门及插座1套。 ⑸.信号机支架。 ⑹.信号机基础保护罩(香槟金)，不锈钢包边,表面氟碳喷涂。含信号机控制箱7.(室外机箱符合IP55，具有通风、隔热、防水、防火、耐盐雾、防尘等性能。适应室外恶劣条件下不间断工作，箱体中使用的端子、避雷装置、熔断装置、保护装置等均符合国家有关电气安全标准要求。箱体内具有自动温度调节控制模块和排风模块，可自动调节机柜内部温度，可自动排风或加热，使机柜内温度恒定在一定温度范围内，保证系统稳定的工作,底部配备了220V接线端子、红灯输入接线端子、I/O输出接线端子、接地端子及调试专用插座（2个两相插座、2个三相插座） | F22: 202.66 | G22: 65 | H22: 13172.9
A23: 21 | B23: 拆除人行道 | C23: 平方米 | E23: 1.材质:混凝土步道砖 2.厚度:5cm 3.材质:混凝土基层 4.基层厚度:15cm | F23: 33.75 | G23: 943 | H23: 31826.25
A24: 22 | B24: 人行道块料铺设 | C24: 平方米 | E24: 1.块料品种、规格:混合混凝土步道砖200*100*60（利旧） 2.基础、垫层、材料品种、厚度:15cm厚C25混凝土 | F24: 285.58 | G24: 943 | H24: 269301.94
A25: 23 | B25: 铺种草皮 | C25: 平方米 | E25: 1.草皮种类:冷草 2.铺种方式:铺草卷 3.养护期:一年 | F25: 13.05 | G25: 1765 | H25: 23033.25
A26: 24 | B26: 挖沟槽土方 | C26: 米3 | E26: 1.名称:电缆沟挖填土 2.土壤类别:三类土 3.挖土深度:2m 内 | F26: 141.38 | G26: 1403.04 | H26: 198361.7952
A27: 25 | B27: 电缆保护管 | C27: 米 | E27: 1.名称:地埋电缆保护管 2.规格:Φ90 3.材质:PE 4.敷设方式:地埋 | F27: 39.29 | G27: 2923 | H27: 114844.67
A28: 26 | B28: 人（手)孔井 | C28: 座 | E28: 1.材料品种:标准砖 2.规格尺寸:收口型 井深1.5m Φ1000mm 3.盖板材质、规格:铸铁五防井盖 4.混凝土标号：C25 | F28: 2429.43 | G28: 27 | H28: 65594.61
A29: 27 | B29: 挖基坑土方 | C29: 米3 | E29: 1.土壤类别:三类土 2.挖土深度:2m 内 | F29: 16.71 | G29: 258.82 | H29: 4324.8822
A30: 28 | B30: 独立基础 | C30: 米3 | E30: 1.混凝土种类:现浇 2.混凝土强度等级:C30 | F30: 550.75 | G30: 227.02 | H30: 125031.265
A31: 29 | B31: 余方弃置 | C31: 米3 | E31: 1.废弃料品种:土方 2.运距:按运距18km考虑 3.渣土消纳及运输 | F31: 80.96 | G31: 1888.88 | H31: 152923.7248
A32: 31 | B32: 路灯及庭院灯拆除 | C32: 套 | E32: 1.名称:自行车道灯拆除 2.规格:φ400mm | F32: 44.85 | G32: 65 | H32: 2915.25
A33: 32 | B33: 自行车道灯 | C33: 套 | E33: 1.类型:自行车道灯 2.信号灯规格、型号、组数:φ400超高亮度LED信号灯、由三个分离的发光单元组成，每个发光单元都采用无色透明透光面、透过透光面可见LED排列成图形，壳体为金属制品 | F33: 1410.07 | G33: 65 | H33: 91654.55
A34: 33 | B34: 智能控制箱拆除 | C34: 台 | E34: 1.名称:老式单点信号机拆除 | F34: 124.83 | G34: 65 | H34: 8113.95
A35: 34 | B35: 信号机 | C35: 架 | E35: 1.名称:高端联网智能交通信号机 2.规格:16相位以上 3.类型:联网 ⑴. 32路处理器，嵌入式Linux操作系统，18相位、48路输出、64路RS-485通信输入或32位IO开关量输入(选配IO板)； ⑵. LCD显示屏及键盘：可以在不带电脑的情况下，方便设置和查看信号机参数； ⑶. 提供信号灯组红绿同亮、绿冲突、机动车灯组红灯熄灭、AC220V工作电压故障、通讯故障、配时异常、检测器异常检测； ⑷. 提供3路RS-232接口、1路RS-485接口和2路RJ-45 10M/100M自适应网口； ⑸. 支持1路SD存储卡； ⑹. 提供8个行人请求接口，4路紧急优先输入接口，4路公交优先输入接口，1个铁路优先输入接口； ⑺. 支持感应控制检测器、排队检测器、反溢检测器、路段数据采集检测器； ⑻. 提供48套日时方案，36套节假日方案，255套相序方案，每套日时方案提供48个时段； ⑼. 具有感应控制、单点自适应控制、流量密度感应控制、全红感应控制、排队控 制、反溢控制、可变车道控制、调拨车道控制、搭接相位控制、特勤车队优先控制、铁道、紧急救险车优先控制、BRT快速公交优先控制、临界路口控制、下匝道排队控制、二次行人过街、邻近路口有线连锁控制、无线缆协调、多时段定时控制、节假日控制、周时方案控制等多种交通信号控制功能； ⑽. 信号控制方式: 中心控制(配时、定相控制、特勤控制、BRT信号优先策略控制)、日时/周时方案控制、本地手动控制(步进或相位控制)、本地自适应感应控制； ⑾. 支持GPS对时(选配GPS模块)； ⑿. 数据采集与存储； ⒀. 一体化PDU，具备电压显示、双路电源切换等功能； ⒁. 主机尺寸：长：486mm；高：486mm；深：290mm ⒂.符合GB25280-2016标准； | F35: 35209.62 | G35: 3 | H35: 105628.86
A36: 36 | B36: 控制箱 | C36: 台 | E36: 1.名称:信号机箱及混凝土基础 ⑴.铝制前后双开门； ⑵.壁厚：3.0mm； ⑶.高度：1600mm；宽度：1200mm 深度：550mm ； ⑷.风扇2个，灯管1个，手控小门1个，应急电源小门及插座1套。 ⑸.信号机支架。 ⑹.信号机基础保护罩(香槟金)，不锈钢包边,表面氟碳喷涂。含信号机控制箱7.(室外机箱符合IP55，具有通风、隔热、防水、防火、耐盐雾、防尘等性能。适应室外恶劣条件下不间断工作，箱体中使用的端子、避雷装置、熔断装置、保护装置等均符合国家有关电气安全标准要求。箱体内具有自动温度调节控制模块和排风模块，可自动调节机柜内部温度，可自动排风或加热，使机柜内温度恒定在一定温度范围内，保证系统稳定的工作,底部配备了220V接线端子、红灯输入接线端子、I/O输出接线端子、接地端子及调试专用插座（2个两相插座、2个三相插座） 3.现浇混凝土C30独立基础（120CM*60CM*100CM) | F36: 6742.38 | G36: 68 | H36: 458481.84
A37: 37 | B37: 拉管 | C37: 米 | E37: 1.MPP拉管 2.DN80 | F37: 202.74 | G37: 40 | H37: 8109.6
A38: 合计 | G38: =SUM(G3:G37) -> 97528.76 | H38: =SUM(H3:H37) -> 3644844.427

Sheet 维修人员费用表
A1: 交通设施维修人员费用统计明细表
C2: 2月 | D2: 3月 | E2: 4月 | F2: 5月 | G2: 6月 | H2: 7月 | I2: 8月 | J2: 9月 | K2: 10月 | L2: 11月 | M2: 12月 | N2: 合计 | O2: 人月 | P2: 月费用 | Q2: 金额
A3: 1 | B3: 彭效友 | C3: 20 | D3: 23 | E3: 22 | F3: 23 | G3: 22 | H3: 23 | I3: 23 | J3: 22 | K3: 23 | L3: 22 | M3: 23 | N3: =SUM(C3:M3) -> 246 | O3: =N3/21.75 -> 11.31034483 | P3: 5600 | Q3: =O3*P3 -> 63337.93103
A4: 2 | B4: 杜绍彬 | C4: 20 | D4: 23 | E4: 22 | F4: 23 | G4: 22 | H4: 23 | I4: 23 | J4: 22 | K4: 23 | L4: 22 | M4: 23 | N4: =SUM(C4:M4) -> 246 | O4: =N4/21.75 -> 11.31034483 | P4: 5600 | Q4: =O4*P4 -> 63337.93103
A5: 3 | B5: 梁军 | C5: 20 | D5: 23 | E5: 22 | F5: 23 | G5: 22 | H5: 23 | I5: 23 | J5: 22 | K5: 23 | L5: 22 | M5: 23 | N5: 246 | O5: 11.31034483 | P5: 5600 | Q5: 63337.93103
A6: 4 | B6: 李乾成 | C6: 20 | D6: 23 | E6: 22 | F6: 23 | G6: 22 | H6: 23 | I6: 23 | J6: 22 | K6: 23 | L6: 22 | M6: 23 | N6: 246 | O6: 11.31034483 | P6: 5600 | Q6: 63337.93103
A7: 5 | B7: 刁云斗 | C7: 20 | D7: 23 | E7: 22 | F7: 23 | G7: 22 | H7: 23 | I7: 23 | J7: 22 | K7: 23 | L7: 22 | M7: 23 | N7: 246 | O7: 11.31034483 | P7: 5600 | Q7: 63337.93103
A8: 6 | B8: 韩红言 | C8: 20 | D8: 23 | E8: 22 | F8: 23 | G8: 22 | H8: 23 | I8: 23 | J8: 22 | K8: 23 | L8: 22 | M8: 23 | N8: 246 | O8: 11.31034483 | P8: 5600 | Q8: 63337.93103
A9: 7 | B9: 逯长辉 | C9: 20 | D9: 23 | E9: 22 | F9: 23 | G9: 22 | H9: 23 | I9: 23 | J9: 22 | K9: 23 | L9: 22 | M9: 23 | N9: 246 | O9: 11.31034483 | P9: 5600 | Q9: 63337.93103
A10: 8 | B10: 迈书杰 | C10: 20 | D10: 23 | E10: 22 | F10: 23 | G10: 22 | H10: 23 | I10: 23 | J10: 22 | K10: 23 | L10: 22 | M10: 23 | N10: 246 | O10: 11.31034483 | P10: 5600 | Q10: 63337.93103
A11: 9 | B11: 郝新春 | C11: 20 | D11: 23 | E11: 22 | F11: 23 | G11: 22 | H11: 23 | I11: 23 | J11: 22 | K11: 23 | L11: 22 | M11: 23 | N11: 246 | O11: 11.31034483 | P11: 5600 | Q11: 63337.93103
A12: 10 | B12: 王凯 | C12: 20 | D12: 23 | E12: 22 | F12: 23 | G12: 22 | H12: 23 | I12: 23 | J12: 22 | K12: 23 | L12: 22 | M12: 23 | N12: 246 | O12: 11.31034483 | P12: 5600 | Q12: 63337.93103
A13: 11 | B13: 王宝成 | C13: 20 | D13: 23 | E13: 22 | F13: 23 | G13: 22 | H13: 23 | I13: 23 | J13: 22 | K13: 23 | L13: 22 | M13: 23 | N13: 246 | O13: 11.31034483 | P13: 5600 | Q13: 63337.93103
A14: 12 | B14: 崔海峰 | C14: 20 | D14: 23 | E14: 22 | F14: 23 | G14: 22 | H14: 23 | I14: 23 | J14: 22 | K14: 23 | L14: 22 | M14: 23 | N14: 246 | O14: 11.31034483 | P14: 5600 | Q14: 63337.93103
A15: 13 | B15: 胡海山 | C15: 20 | D15: 23 | E15: 22 | F15: 23 | G15: 22 | H15: 23 | I15: 23 | J15: 22 | K15: 23 | L15: 22 | M15: 23 | N15: 246 | O15: 11.31034483 | P15: 5600 | Q15: 63337.93103
A16: 14 | B16: 高春旺 | C16: 20 | D16: 23 | E16: 22 | F16: 23 | G16: 22 | H16: 23 | I16: 23 | J16: 22 | K16: 23 | L16: 22 | M16: 23 | N16: 246 | O16: 11.31034483 | P16: 5600 | Q16: 63337.93103
A17: 15 | B17: 杨新波 | C17: 20 | D17: 23 | E17: 22 | F17: 23 | G17: 22 | H17: 23 | I17: 23 | J17: 22 | K17: 23 | L17: 22 | M17: 23 | N17: 246 | O17: 11.31034483 | P17: 5600 | Q17: 63337.93103
A18: 16 | B18: 齐金旺 | C18: 20 | D18: 23 | E18: 22 | F18: 23 | G18: 22 | H18: 23 | I18: 23 | J18: 22 | K18: 23 | L18: 22 | M18: 23 | N18: 246 | O18: 11.31034483 | P18: 5600 | Q18: 63337.93103
A19: 17 | B19: 李付国 | C19: 20 | D19: 23 | E19: 22 | F19: 23 | G19: 22 | H19: 23 | I19: 23 | J19: 22 | K19: 23 | L19: 22 | M19: 23 | N19: 246 | O19: 11.31034483 | P19: 5600 | Q19: 63337.93103
A20: 18 | B20: 李东明 | C20: 20 | D20: 23 | E20: 22 | F20: 23 | G20: 22 | H20: 23 | I20: 23 | J20: 22 | K20: 23 | L20: 22 | M20: 23 | N20: 246 | O20: 11.31034483 | P20: 5600 | Q20: 63337.93103
A21: 19 | B21: 吴景田 | C21: 20 | D21: 23 | E21: 22 | F21: 23 | G21: 22 | H21: 23 | I21: 23 | J21: 22 | K21: 23 | L21: 22 | M21: 23 | N21: 246 | O21: 11.31034483 | P21: 5600 | Q21: 63337.93103
A22: 20 | B22: 季长城 | C22: 20 | D22: 23 | E22: 22 | F22: 23 | G22: 22 | H22: 23 | I22: 23 | J22: 22 | K22: 23 | L22: 22 | M22: 23 | N22: 246 | O22: 11.31034483 | P22: 5600 | Q22: 63337.93103
A23: 合计 | N23: =SUM(N3:N22) -> 4920 | O23: 226.2068966 | Q23: =SUM(Q3:Q22) -> 1266758.621

Sheet 维修车辆燃油费用
A1: 交通设施维修车辆燃油费用结算明细表
A2: 序号 | B2: 车辆信息 | C2: 燃油使用量（升） | N2: 合计 (升) | O2: 油价 （元/升） | P2: 燃油费（元）
C3: 2月 | D3: 3月 | E3: 4月 | F3: 5月 | G3: 6月 | H3: 7月 | I3: 8月 | J3: 9月 | K3: 10月 | L3: 11月 | M3: 12月
A4: 1 | B4: 京Q7Z7Y3（柴油） | C4: 485 | D4: 537 | E4: 519 | F4: 536 | G4: 522 | H4: 534 | I4: 530 | J4: 520 | K4: 506 | L4: 549 | M4: 528 | N4: =SUM(C4:M4) -> 5766 | O4: 5.8 | P4: =N4*O4 -> 33442.8
A5: 2 | B5: 京HPB822 | C5: 512 | D5: 519 | E5: 536 | F5: 563 | G5: 543 | H5: 519 | I5: 534 | J5: 541 | K5: 527 | L5: 521 | M5: 522 | N5: =SUM(C5:M5) -> 5837 | O5: 6.6 | P5: =N5*O5 -> 38524.2
A6: 3 | B6: 京CVL720 | C6: 540 | D6: 560 | E6: 528 | F6: 499 | G6: 534 | H6: 555 | I6: 527 | J6: 506 | K6: 547 | L6: 519 | M6: 498 | N6: =SUM(C6:M6) -> 5813 | O6: 6.6 | P6: =N6*O6 -> 38365.8
A7: 4 | B7: 京AM0850 | C7: 501 | D7: 554 | E7: 537 | F7: 553 | G7: 540 | H7: 564 | I7: 554 | J7: 549 | K7: 534 | L7: 504 | M7: 530 | N7: =SUM(C7:M7) -> 5920 | O7: 6.6 | P7: =N7*O7 -> 39072
A8: 合计 | C8: =SUM(C4:C7) -> 2038 | D8: 2170 | E8: 2120 | F8: 2151 | G8: 2139 | H8: 2172 | I8: 2145 | J8: 2116 | K8: 2114 | L8: 2093 | M8: 2078 | N8: 23336 | P8: =SUM(P4:P7) -> 149404.8

Sheet 维修车辆折旧费用
A1: 交通设施维修车辆折旧费用结算明细表
A2: 序号 | B2: 车辆 | C2: 型号规格 | D2: 购置价（元） | E2: 残值(5%) | F2: 11个月折旧额 （2021年02-12月）
A3: 1 | B3: 京Q7Z7Y3（柴油） | C3: 江铃 | D3: 199000 | E3: =D3*0.05 -> 9950 | F3: =(D3-E3)/48*11 -> 43323.95833
A4: 2 | B4: 京HPB822 | C4: 江铃 | D4: 145000 | E4: =D4*0.05 -> 7250 | F4: =(D4-E4)/48*11 -> 31567.70833
A5: 3 | B5: 京CVL720 | C5: 江铃 | D5: 189000 | E5: 9450 | F5: 41146.875
A6: 4 | B6: 京AM0850 | C6: 江铃 | D6: 335000 | E6: 16750 | F6: 72932.29167
A7: 折旧合计（元） | F7: =SUM(F3:F6) -> 188970.8333
A8: 注：根据国家最新企业所得税法实施条例，飞机、火车、轮船以外的运输工具最低折旧年限4年。

Sheet 应急保障费用
A1: 应急保障费用结算明细表
A2: 序号 | B2: 应急服务内容 | C2: 各月份应急保障(台班) | N2: 合计 (台班) | O2: 单价 （元/台班） | P2: 金额（元）
C3: 2月 | D3: 3月 | E3: 4月 | F3: 5月 | G3: 6月 | H3: 7月 | I3: 8月 | J3: 9月 | K3: 10月 | L3: 11月 | M3: 12月
A4: 1 | B4: 发电机使用 | C4: 10 | D4: 9 | E4: 14 | F4: 16 | G4: 21 | H4: 17 | I4: 15 | J4: 11 | K4: 9 | L4: 7 | M4: 12 | N4: =SUM(C4:M4) -> 141 | O4: 280 | P4: =N4*O4 -> 39480
A5: 2 | B5: 太阳能临时信号灯使用 | C5: 12 | D5: 7 | E5: 9 | F5: 8 | G5: 14 | H5: 11 | I5: 9 | J5: 8 | K5: 6 | L5: 11 | M5: 8 | N5: =SUM(C5:M5) -> 103 | O5: 120 | P5: =N5*O5 -> 12360
A6: 合计 | P6: =SUM(P4:P5) -> 51840

Sheet 勤务费用
A1: 勤务费用结算明细表
A2: 勤务保障任务 | B2: 勤务人员 | E2: 勤务保障车辆 | H2: 笔记本电脑
B3: 勤务量 | C3: 数量 | D3: 小计 | E3: 勤务量 | F3: 数量 | G3: 小计 | H3: 勤务量 | I3: 数量 | J3: 小计
A4: 百年大庆保障 | B4: 24 | C4: 2 | D4: =B4*C4 -> 48 | E4: 24 | F4: 1 | G4: =E4*F4 -> 24 | H4: 24 | I4: 1 | J4: =H4*I4 -> 24
A5: 高考保障 | B5: 27 | C5: 2 | D5: =B5*C5 -> 54 | E5: 27 | F5: 1 | G5: =E5*F5 -> 27 | H5: 27 | I5: 1 | J5: =H5*I5 -> 27
A6: 中考保障 | B6: 24 | C6: 2 | D6: 48 | E6: 24 | F6: 1 | G6: 24 | H6: 24 | I6: 1 | J6: 24
A7: 成人高考保障 | B7: 2 | C7: 2 | D7: 4 | E7: 2 | F7: 1 | G7: 2 | H7: 2 | I7: 1 | J7: 2
A8: 公务员考试保障 | B8: 3 | C8: 2 | D8: 6 | E8: 3 | F8: 1 | G8: 3 | H8: 3 | I8: 1 | J8: 3
A9: 英语美术考试保障 | B9: 2 | C9: 2 | D9: 4 | E9: 2 | F9: 1 | G9: 2 | H9: 2 | I9: 1 | J9: 2
A10: 外宾迎接勤务保障 | B10: 13 | C10: 2 | D10: =B10*C10 -> 26 | E10: 13 | F10: 1 | G10: =E10*F10 -> 13 | H10: 13 | I10: 1 | J10: =H10*I10 -> 13
A11: 过境车辆勤务保障 | B11: 4 | C11: 2 | D11: 8 | E11: 4 | F11: 1 | G11: 4 | H11: 4 | I11: 1 | J11: 4
A12: 国展保障 | B12: 5 | C12: 2 | D12: =B12*C12 -> 10 | E12: 5 | F12: 1 | G12: =E12*F12 -> 5 | H12: 5 | I12: 1 | J12: =H12*I12 -> 5
A13: 合计 | B13: =SUM(D4:D12) -> 208 | E13: =SUM(G4:G12) -> 104 | H13: =SUM(J4:J12) -> 104
A14: 单价（元/台班） | B14: 320 | E14: 500 | H14: 120
A15: 金额（元） | B15: =B13*B14 -> 66560 | E15: =E13*E14 -> 52000 | H15: =H13*H14 -> 12480
A16: 总金额（元） | B16: =B15+E15+H15 -> 131040

Sheet 优化配时费用
A2: 配时路 口数量 | B2: 年服务费用 （元） | C2: 金额 （元）
A3: =COUNT(A7:A181) -> 175 | B3: 2000 | C3: =A3*B3 -> 350000
A5: 优化配时路口清单表
A6: 序号 | B6: 路口名称 | C6: 2月 | D6: 3月 | E6: 4月 | F6: 5月 | G6: 6月 | H6: 7月 | I6: 8月 | J6: 9月 | K6: 10月 | L6: 11月 | M6: 12月
A7: 1 | B7: 安宁大街裕安路 | C7: 1 | G7: 1 | J7: 1
A8: 2 | B8: 安庆大街与裕庆路 | I8: 1
A9: 3 | B9: 白马路良白路 | D9: 1 | K9: 1
A10: 4 | B10: 白马路水上公园儿 | F10: 1 | L10: 1
A11: 5 | B11: 白马路右堤路 | L11: 1
A12: 6 | B12: 白马路与后郝家疃路 | G12: 1 | L12: 1
A13: 7 | B13: 白马路与火寺路 | E13: 1 | L13: 1
A14: 8 | B14: 白马路与坤安路 | J14: 1
A15: 9 | B15: 白马路与木北路配 | D15: 1 | K15: 1
A16: 10 | B16: 白马路与木燕路 | G16: 1 | K16: 1
A17: 11 | B17: 白马路与南陈路 | F17: 1 | L17: 1
A18: 12 | B18: 白马路与与恒兴路 | K18: 1
A19: 13 | B19: 白马路与左堤路 | M19: 1
A20: 14 | B20: 北木路火寺路 | E20: 1 | K20: 1
A21: 15 | B21: 昌金路火寺路 | K21: 1
A22: 16 | B22: 昌金路与水色时光花园路 | F22: 2 | L22: 1
A23: 17 | B23: 陈马路木北路 | L23: 1
A24: 18 | B24: 陈庄与左堤路 | H24: 1
A25: 19 | B25: 府前街大东路 | L25: 1
A26: 20 | B26: 港馨西区调 | L26: 1
A27: 21 | B27: 港馨西区西门 | I27: 1 | J27: 3
A28: 22 | B28: 恒兴路与开元街 | F28: 1 | K28: 1
A29: 23 | B29: 胡各庄小学 | L29: 1
A30: 24 | B30: 汇海南路与富元大街 | L30: 1
A31: 25 | B31: 汇海南路与四纬路 | F31: 1 | L31: 2
A32: 26 | B32: 火沙路高白路 | M32: 1
A33: 27 | B33: 火沙路古城村中心街路 | F33: 1 | K33: 1
A34: 28 | B34: 火沙路与高白路 | L34: 1
A35: 29 | B35: 火沙路与美术学院 | J35: 1
A36: 30 | B36: 火沙路与裕庆路 | G36: 1 | I36: 1 | J36: 2
A37: 31 | B37: 火沙路与裕庆路 | J37: 1
A38: 32 | B38: 火沙路裕丰路 | L38: 1
A39: 33 | B39: 火沙路中央美术学院 | K39: 1
A40: 34 | B40: 火寺路与机场北线南路 | M40: 1
A41: 35 | B41: 机场北街与顺畅大道 | L41: 1
A42: 36 | B42: 机场北线顺航路 | C42: 1 | I42: 1
A43: 37 | B43: 机场北线与顺航路 | I43: 1
A44: 38 | B44: 机场东路三四营路 | H44: 1
A45: 39 | B45: 机场东路四维路 | M45: 1
A46: 40 | B46: 机场东路四纬路 | J46: 2
A47: 41 | B47: 机场东路与李天路 | E47: 1 | H47: 1
A48: 42 | B48: 机场东路与龙塘路 | J48: 2
A49: 43 | B49: 机场东路与三四营村路 | J49: 1
A50: 44 | B50: 机场东路与苏活路 | J50: 1
A51: 45 | B51: 金航西路与顺平路 | D51: 1 | M51: 1
A52: 46 | B52: 京沈安详 | G52: 1 | L52: 1
A53: 47 | B53: 京沈火沙辅路 | L53: 1
A54: 48 | B54: 京沈路安宁大街 | L54: 1
A55: 49 | B55: 京沈路火沙路 | L55: 1
A56: 50 | B56: 京沈路顺于路 | M56: 1
A57: 51 | B57: 京沈路与安宁大街 | E57: 1 | G57: 1 | K57: 1
A58: 52 | B58: 京沈路与安宁大街路 | J58: 1
A59: 53 | B59: 京沈路与安祥大街路 | J59: 1
A60: 54 | B60: 京沈路与国展地铁站路 | F60: 1 | J60: 1
A61: 55 | B61: 京沈路与后沙峪地铁站路 | J61: 1
A62: 56 | B62: 京沈路与火沙辅线 | J62: 1
A63: 57 | B63: 京沈路与火沙辅线路 | E63: 1 | J63: 1
A64: 58 | B64: 京沈路与火沙路路 | J64: 1
A65: 59 | B65: 京沈路与良白路 | C65: 1 | L65: 1
A66: 60 | B66: 京沈路与天北路 | J66: 1 | K66: 1
A67: 61 | B67: 京沈路与天纬二街路 | C67: 1 | J67: 3 | K67: 1
A68: 62 | B68: 经纬中路与富元南街 | H68: 1
A69: 63 | B69: 经纬中路与正元南街 | C69: 1 | H69: 1
A70: 64 | B70: 坤安路与顺恒大街 | E70: 1 | K70: 1
A71: 65 | B71: 李木路与崇国庄路 | E71: 1 | J71: 1
A72: 66 | B72: 李天路机场二高桥下 | E72: 1 | J72: 1
A73: 67 | B73: 李天路樱花园路 | E73: 1 | I73: 1
A74: 68 | B74: 李天路与丰荣酒店门口 | E74: 1 | I74: 1
A75: 69 | B75: 李天路与南半壁店小区路 | D75: 1 | I75: 1
A76: 70 | B76: 林荫路与杨林大道路 | E76: 1 | J76: 1
A77: 71 | B77: 柳各庄与顺平南线 | E77: 1 | L77: 1
A78: 72 | B78: 龙塘路崇各庄路 | E78: 1 | K78: 1
A79: 73 | B79: 龙塘路平沿路 | D79: 1 | J79: 1
A80: 74 | B80: 龙塘路与平沿路 | E80: 1 | K80: 1
A81: 75 | B81: 龙塘路与通顺路 | E81: 1 | H81: 1
A82: 76 | B82: 龙塘路与左堤路 | D82: 1 | H82: 1
A83: 77 | B83: 龙塘路庄子营路 | E83: 1 | L83: 1
A84: 78 | B84: 木北路小店路 | E84: 1 | J84: 2 | M84: 1
A85: 79 | B85: 木北路与顺平路 | C85: 1 | L85: 1
A86: 80 | B86: 木邵路木林小学 | J86: 1
A87: 81 | B87: 木燕路南辛庄村口 | J87: 1
A88: 82 | B88: 木燕路与左堤路 | C88: 1 | H88: 1
A89: 83 | B89: 南陈路毛家营 | F89: 1 | K89: 1
A90: 84 | B90: 南陈路与顺于路 | F90: 1 | L90: 1
A91: 85 | B91: 乾安路顺祥街 | E91: 1 | H91: 1
A92: 86 | B92: 三家店村口 | F92: 1 | L92: 1 | M92: 1
A93: 87 | B93: 山丁支线龙林路 | F93: 1 | L93: 1
A94: 88 | B94: 石园大街顺泰路 | D94: 1 | F94: 1 | L94: 1
A95: 89 | B95: 顺白路西辛小区 | J95: 1
A96: 90 | B96: 顺白路与良白路 | E96: 1 | H96: 1
A97: 91 | B97: 顺白路与外环路 | C97: 1 | K97: 1
A98: 92 | B98: 顺白路中晟馨苑 | F98: 1 | J98: 2 | K98: 1
A99: 93 | B99: 顺驰路物流园六街 | E99: 1 | F99: 1 | I99: 1
A100: 94 | B100: 顺和路和外环路 | K100: 1
A101: 95 | B101: 顺和路与和平街 | M101: 1
A102: 96 | B102: 顺密路与后鲁各庄路路 | D102: 1 | J102: 1
A103: 97 | B103: 顺密路与木燕路 | J103: 1
A104: 98 | B104: 顺密路与前鲁各庄路 | J104: 1
A105: 99 | B105: 顺平辅线与李魏路 | J105: 1
A106: 100 | B106: 顺平辅线与顺密路 | M106: 1
A107: 101 | B107: 顺平辅线与拥军路 | K107: 1
A108: 102 | B108: 顺平路安乐庄村口 | K108: 1
A109: 103 | B109: 顺平路滨河南口 | H109: 1
A110: 104 | B110: 顺平路南焦路 | J110: 1
A111: 105 | B111: 顺平路南线与左堤路 | I111: 1
A112: 106 | B112: 顺平路顺畅大道 | F112: 1 | L112: 1
A113: 107 | B113: 顺平路与杜庄村 | K113: 1
A114: 108 | B114: 顺平路与环镇东路 | F114: 1 | K114: 1
A115: 109 | B115: 顺平路与机场东路 | J115: 1
A116: 110 | B116: 顺平路与李木路 | I116: 1 | K116: 1
A117: 111 | B117: 顺平路与木北路 | F117: 1 | K117: 1
A118: 112 | B118: 顺平路与木燕路 | K118: 2
A119: 113 | B119: 顺平路与南焦路 | K119: 1
A120: 114 | B120: 顺平路与顺畅大道 | J120: 1 | L120: 1
A121: 115 | B121: 顺平路与顺康路 | J121: 1
A122: 116 | B122: 顺平路与顺密路 | H122: 1
A123: 117 | B123: 顺平路与顺泰路 | H123: 1 | I123: 1 | L123: 1
A124: 118 | B124: 顺平路与万福烤鸭店 | D124: 1 | K124: 1
A125: 119 | B125: 顺平路与新顺南大街 | D125: 1 | J125: 1
A126: 120 | B126: 顺平路与中干渠 | G126: 1 | K126: 1
A127: 121 | B127: 顺平南线与柴家村路 | F127: 1 | H127: 1
A128: 122 | B128: 顺平南线与东华山 | D128: 1 | H128: 1
A129: 123 | B129: 顺平南线与李木路 | H129: 1
A130: 124 | B130: 顺平南线与李魏路 | H130: 1 | J130: 1
A131: 125 | B131: 顺平南线与龙土南路 | H131: 1
A132: 126 | B132: 顺平南线与龙尹路 | H132: 1
A133: 127 | B133: 顺平南线与木北路 | H133: 2
A134: 128 | B134: 顺平南线与木燕路 | H134: 1
A135: 129 | B135: 顺平南线与七大路 | H135: 1
A136: 130 | B136: 顺平南线与赵湘路 | H136: 1
A137: 131 | B137: 顺平南线与中干渠路 | H137: 1
A138: 132 | B138: 顺平南线与左堤路 | C138: 1 | H138: 1
A139: 133 | B139: 顺沙路 白良路 | C139: 1 | K139: 1
A140: 134 | B140: 顺沙路高白路 | M140: 1
A141: 135 | B141: 顺沙路与火寺路 | C141: 1 | H141: 1
A142: 136 | B142: 顺沙路与万万树 | K142: 1
A143: 137 | B143: 顺沙路与右堤路 | C143: 1 | K143: 1
A144: 138 | B144: 顺沙路张喜庄路 | L144: 1
A145: 139 | B145: 顺于路南焦路 | J145: 1
A146: 140 | B146: 顺于路顺达路 | C146: 1 | K146: 1
A147: 141 | B147: 顺于路外环路 | G147: 1 | L147: 1
A148: 142 | B148: 顺于路与高白路 | G148: 1 | K148: 1
A149: 143 | B149: 顺于路与南焦路 | G149: 1 | K149: 1
A150: 144 | B150: 顺于路与前景路 | D150: 1 | G150: 1 | M150: 1
A151: 145 | B151: 四纬路与北斗路 | E151: 1 | H151: 1
A152: 146 | B152: 四纬路与金桥路 | D152: 1 | H152: 1
A153: 147 | B153: 四纬路与经纬中路 | D153: 1 | F153: 1 | H153: 1
A154: 148 | B154: 苏活小区的临时红绿灯 | J154: 1
A155: 149 | B155: 天北路花园西街路 | D155: 1 | J155: 1
A156: 150 | B156: 天北路天柱东路 | J156: 1
A157: 151 | B157: 天北路与安宁大街 | C157: 1 | G157: 1 | K157: 1
A158: 152 | B158: 天北路与花园西街 | C158: 1 | D158: 1 | G158: 1 | J158: 1
A159: 153 | B159: 天北路与兆丰二街 | F159: 1 | H159: 1
A160: 154 | B160: 天北路与兆丰一街 | D160: 1 | H160: 1
A161: 155 | B161: 天柱东路与丽苑街 | J161: 1
A162: 156 | B162: 天柱路 天纬二街 | D162: 1 | F162: 1 | K162: 1
A163: 157 | B163: 天柱路与天纬二街 | K163: 1
A164: 158 | B164: 通顺路石园南大街 | D164: 1 | J164: 1
A165: 159 | B165: 通顺路与滨河北路 | D165: 1 | H165: 1
A166: 160 | B166: 通顺路与金牛街 | J166: 1
A167: 161 | B167: 通顺路与龙塘路现场 | F167: 1 | L167: 1
A168: 162 | B168: 通顺路与石园大街 | K168: 1
A169: 163 | B169: 通顺路与石园大街路 | C169: 1 | G169: 1 | K169: 1
A170: 164 | B170: 通顺路与顺丰大街 | J170: 1
A171: 165 | B171: 通顺路与西丰乐村 | E171: 1 | M171: 1
A172: 166 | B172: 通顺路与幸福西区 | M172: 1
A173: 167 | B173: 杨镇小学 | G173: 1 | L173: 1
A174: 168 | B174: 赵陈路与顺密路 | J174: 1
A175: 169 | B175: 正元大街与汇海南路 | C175: 1 | L175: 2
A176: 170 | B176: 正元大街与经纬中路 | H176: 1
A177: 171 | B177: 正元大街与鑫桥中路 | G177: 2 | M177: 2
A178: 172 | B178: 正元南街与汇海南路 | L178: 2
A179: 173 | B179: 中干渠杨镇东大街 | D179: 1 | G179: 1 | K179: 1
A180: 174 | B180: 中干渠与顺密路 | K180: 1
A181: 175 | B181: 左堤路与太平路 | H181: 1
A182: 合计 | C182: =SUM(C7:C181) -> 17 | D182: 21 | E182: 22 | F182: 23 | G182: 18 | H182: 35 | I182: 12 | J182: 57 | K182: 43 | L182: 39 | M182: 16

Sheet 供电费用
A1: 供电费用估算表
A3: 序号 | B3: 项目名称 | C3: 计量单位 | D3: 数量 | E3: 综合单价 | F3: 合价 | G3: 备注
A4: 1 | B4: 电卡充值费用 | C4: 项 | D4: 1 | E4: 308837.33 | F4: =D4*E4 -> 308837.33 | G4: 详见实施方案
A5: 2 | B5: 抄表支付费用 | C5: 项 | D5: 1 | E5: 261154.39 | F5: 261154.39
A6: 3 | B6: 协议用电费用（待支付） | C6: 项 | D6: 1 | E6: 110012.48 | F6: 110012.48
A7: 小计 | F7: =SUM(F4:F6) -> 680004.2
